bitfinex/quotes_SOLUSD_20250123
["timestamp","ask_amount","ask_price","bid_price","bid_amount"]
[1737612840601,7.96539833,250.16,250.13,0.063]
[1737612840798,7.96539833,250.14,250.13,0.063]
[1737612843319,7.96539833,250.16,250.13,0.063]
[1737612843528,7.96539833,250.16,250.13,312.063]
[1737612844420,7.96539833,250.23,250.15,7.96539833]
[1737612844723,7.96539833,250.23,250.13,12.02619833]
[1737612845023,7.96539833,250.21,250.13,12.02619833]
[1737612845807,7.96539833,250.21,250.13,4.0608]
[1737612846006,0.03,250.25,250.13,4.0608]
[1737612846007,7.96539833,250.17,250.13,0.063]
[1737612846903,7.96539833,250.15,250.13,0.063]
[1737612847312,7.96539833,250.15,250.13,312.063]
[1737612848423,7.96539833,250.17,250.13,312.063]
[1737612848728,9.9904,250.24,250.13,312.063]
[1737612848729,7.96539833,250.19,250.13,0.063]
[1737612849519,7.96539833,250.17,250.13,0.063]
[1737612849719,12.46244332,250.16,250.13,0.063]
[1737612850131,12.46244332,250.18,250.13,4.0608]
[1737612850510,12.46244332,250.2,250.13,4.0608]
[1737612851531,12.46244332,250.2,250.18,312.0]
[1737612857231,12.46244332,250.2,250.13,0.063]
[1737612857232,94.59244332,250.24,250.16,3.9974]
[1737612857436,94.59244332,250.24,250.16,16.45984332]
[1737612858637,12.46244332,250.24,250.18,3.9971]
[1737612858813,0.03,250.25,250.19,23.776884]
[1737612859012,0.03,250.25,250.22,12.46244332]
[1737612859638,0.03,250.25,250.24,12.46244332]
[1737612859942,0.03,250.25,250.24,36.23932732]
[1737612860139,0.0001,250.25,250.24,42.67962732]
[1737612860334,0.0001,250.25,250.24,354.67962732]
[1737612860920,0.0001,250.25,250.24,358.67572732]
[1737612861234,0.03,250.35,250.28,20.0]
[1737612861442,0.03,250.35,250.3,12.46244332]
[1737612863520,0.03,250.35,250.3,16.45754332]
[1737612863729,0.03,250.35,250.28,12.46244332]
[1737612863930,12.46244332,250.34,250.26,16.45814332]
[1737612864335,12.46244332,250.34,250.28,312.0]
[1737612864927,12.46244332,250.34,250.26,16.45814332]
[1737612866766,0.03,250.35,250.28,12.46244332]
[1737612867627,0.03,250.35,250.29,3.9953]
[1737612867930,0.03,250.35,250.31,312.0]
[1737612869526,12.46244332,250.32,250.24,18.90274332]
[1737612869726,12.46244332,250.32,250.26,3.9957]
[1737612870036,12.49244332,250.35,250.26,16.45814332]
[1737612871772,12.46244332,250.33,250.24,16.45844332]
[1737612872243,12.49244332,250.35,250.28,12.46244332]
[1737612872428,0.03,250.35,250.28,12.46244332]
[1737612872623,0.03,250.35,250.3,312.0]
[1737612873056,0.03,250.35,250.3,12.46244332]
[1737612873764,0.03,250.35,250.32,12.46244332]
[1737612874159,0.03,250.35,250.34,12.46244332]
[1737612875243,0.03,250.35,250.34,36.23932732]
[1737612875662,0.03,250.35,250.34,40.23382732]
[1737612876058,0.03,250.35,250.34,352.23382732]
[1737612876258,0.03,250.35,250.34,328.45694332]
[1737612876864,0.03,250.35,250.34,312.0]
[1737612877773,0.03,250.35,250.31,20.0]
[1737612879472,0.03,250.35,250.32,12.46244332]
[1737612880778,0.03,250.35,250.34,312.0]
[1737612881678,0.03,250.35,250.33,3.9947]
[1737612884675,0.03,250.35,250.34,312.0]
[1737612889088,0.03,250.35,250.34,12.46244332]
[1737612892073,0.03,250.35,250.34,324.46244332]
[1737612893784,0.0001,250.35,250.34,343.73399094]
[1737612893986,0.0001,250.35,250.34,324.44964065]
[1737612894692,7.95710694,250.43,250.34,328.44404065]
[1737612895201,7.95710694,250.43,250.34,16.44404065]
[1737612895664,12.43491374,250.44,250.35,12.43491374]
[1737612898084,12.43491374,250.44,250.37,312.0]
[1737612898890,12.43491374,250.42,250.34,3.9944]
[1737612899791,12.43491374,250.42,250.33,12.43491374]
[1737612900166,12.43491374,250.42,250.33,16.42951374]
[1737612900779,16.42781374,250.44,250.35,12.43491374]
[1737612901883,16.42781374,250.44,250.35,328.42921374]
[1737612902193,16.42781374,250.44,250.35,315.9943]
[1737612902393,12.43491374,250.42,250.35,315.9943]
[1737612902693,12.43491374,250.42,250.35,312.0]
[1737612903599,16.42821374,250.42,250.35,312.0]
[1737612904798,16.42821374,250.42,250.29,12.43491374]
[1737612904799,12.43491374,250.38,250.29,12.43491374]
[1737612905099,12.43491374,250.36,250.27,12.43491374]
[1737612905480,1.0,250.39,250.25,0.063]
[1737612905481,12.43491374,250.32,250.25,0.063]
[1737612906297,16.42981374,250.32,250.25,0.063]
[1737612906596,12.43491374,250.3,250.25,0.063]
[1737612906897,12.43491374,250.26,250.25,0.063]
[1737612907675,98.56071374,250.26,250.25,0.063]
[1737612907886,98.56071374,250.26,250.16,0.063]
[1737612907887,6.3251,250.21,250.16,0.063]
[1737612908087,12.43491374,250.17,250.16,0.063]
[1737612909796,16.43211374,250.17,250.16,0.063]
[1737612910986,41.20899774,250.17,250.16,0.063]
[1737612911609,40.20899774,250.17,250.16,0.063]
[1737612912296,44.776884,250.14,250.13,0.063]
[1737612912492,106.876884,250.13,250.09,0.063]
[1737612912683,12.43491374,250.1,250.09,0.063]
[1737612913005,43.53689774,250.1,250.09,0.063]
[1737612913216,12.43491374,250.01,250.0,15.0]
[1737612913710,20.0,249.98,249.97,0.063]
[1737612913894,32.43491374,249.98,249.97,0.063]
[1737612914503,60.21209774,249.98,249.97,0.063]
[1737612914809,60.21209774,249.98,249.96,0.063]
[1737612915196,12.43491374,249.92,249.9,0.063]
[1737612916797,12.43491374,249.91,249.9,0.063]
[1737612917387,12.43491374,249.93,249.9,0.063]
[1737612917812,12.43491374,249.92,249.9,0.063]
[1737612918796,83.1,249.91,249.9,0.063]
[1737612919002,1.0,249.91,249.9,0.063]
[1737612919615,24.776884,249.91,249.9,0.063]
[1737612919989,24.776884,249.91,249.87,0.063]
[1737612919990,20.0,249.88,249.87,0.063]
[1737612920320,68.64671148,249.88,249.87,0.063]
[1737612921113,60.21369774,249.88,249.87,0.063]
[1737612921319,12.43491374,249.88,249.87,0.063]
[1737612922318,36.21179774,249.88,249.87,0.063]
[1737612923012,38.21179774,249.88,249.87,0.063]
[1737612924231,50.64671148,249.88,249.87,0.063]
[1737612924514,20.0,249.84,249.77,0.063]
[1737612924700,12.43491374,249.78,249.77,0.063]
[1737612925296,12.43491374,249.8,249.77,0.063]
[1737612928718,12.43491374,249.78,249.77,0.063]
[1737612929919,36.21179774,249.78,249.77,0.063]
[1737612934921,23.776884,249.74,249.73,0.063]
[1737612935114,36.21179774,249.74,249.73,0.063]
[1737612936002,40.21589774,249.74,249.73,0.063]
[1737612936614,40.21589774,249.74,249.64,3.7577]
[1737612936930,26.2384,249.84,249.64,3.7577]
[1737612936931,12.43491374,249.72,249.64,3.7577]
[1737612937425,12.43491374,249.7,249.63,0.063]
[1737612937603,12.43491374,249.7,249.63,4.0688]
[1737612941329,12.43491374,249.7,249.63,3.5688]
[1737612944021,12.43491374,249.7,249.54,17.9068766]
[1737612944022,12.43491374,249.66,249.59,12.43491374]
[1737612944228,12.43491374,249.66,249.57,12.43491374]
[1737612945634,12.43491374,249.66,249.57,16.44161374]
[1737612946730,12.43491374,249.6,249.53,0.063]
[1737612947507,23.776884,249.65,249.53,0.063]
[1737612947508,12.43491374,249.58,249.53,0.063]
[1737612948220,12.43491374,249.56,249.53,0.063]
[1737612948423,12.43491374,249.54,249.53,0.063]
[1737612949113,12.43491374,249.56,249.53,0.063]
[1737612950117,5.5773,249.62,249.53,0.063]
[1737612950118,12.43491374,249.58,249.53,0.063]
[1737612950314,12.43491374,249.6,249.53,4.0704]
[1737612950632,12.43491374,249.62,249.54,12.43491374]
[1737612950835,95.53491374,249.64,249.56,12.43491374]
[1737612951819,95.53491374,249.64,249.57,4.0068]
[1737612952530,12.43491374,249.68,249.58,12.43491374]
[1737612952732,12.43491374,249.68,249.6,12.43491374]
[1737612953833,12.43491374,249.66,249.58,12.43491374]
[1737612954213,12.43491374,249.66,249.56,12.43491374]
[1737612954415,12.43491374,249.6,249.53,4.0704]
[1737612955234,12.43491374,249.66,249.58,12.43491374]
[1737612956009,0.03,249.64,249.58,12.43491374]
[1737612959738,12.46491374,249.64,249.56,12.43491374]
[1737612961035,16.47061374,249.64,249.56,12.43491374]
[1737612963037,23.776884,249.63,249.54,12.43491374]
[1737612963337,23.776884,249.57,249.53,0.063]
[1737612963729,7.39817456,249.56,249.53,0.063]
[1737612965842,11.55910359,249.57,249.53,0.063]
[1737612966742,11.55910359,249.59,249.53,0.063]
[1737612967040,11.55910359,249.55,249.53,0.063]
[1737612967929,4.0073,249.54,249.53,0.063]
[1737612968623,83.1,249.56,249.53,0.063]
[1737612969149,83.1,249.56,249.53,4.0704]
[1737612969647,11.55910359,249.61,249.53,4.0704]
[1737612969951,11.58910359,249.63,249.54,11.55910359]
[1737612970143,11.58910359,249.63,249.55,4.0072]
[1737612974042,0.03,249.63,249.6,11.55910359]
[1737612974243,0.03,249.63,249.62,11.55910359]
[1737612975128,0.03,249.63,249.6,11.55910359]
[1737612976046,0.03,249.63,249.6,323.55910359]
[1737612976246,0.03,249.63,249.62,11.55910359]
[1737612977852,0.03,249.63,249.62,13.11970359]
[1737612978229,0.0001,249.64,249.63,4.0059]
[1737612978429,0.0001,249.64,249.63,4.6065417]
[1737612979657,0.0001,249.64,249.63,4.0059]
[1737612980739,0.0001,249.64,249.63,316.0059]
[1737612981135,0.0001,249.64,249.63,340.782784]
[1737612981344,11.55910359,249.83,249.66,21.0]
[1737612981557,11.55910359,249.83,249.74,11.55910359]
[1737612981931,11.55910359,249.83,249.67,0.60052103]
[1737612981932,83.1,249.84,249.78,11.55910359]
[1737612982164,83.1,249.84,249.73,1.5212]
[1737612982165,83.1,249.84,249.8,11.55910359]
[1737612983349,83.1,249.84,249.8,15.56220359]
[1737612983553,0.03,249.87,249.82,11.55910359]
[1737612983758,0.03,249.87,249.84,11.55910359]
[1737612984257,0.03,249.87,249.86,11.55910359]
[1737612985238,0.03,249.87,249.82,11.55910359]
[1737612985657,0.03,249.87,249.84,11.55910359]
[1737612986353,0.03,249.87,249.82,15.56180359]
[1737612989780,83.13,249.87,249.8,15.56210359]
[1737612989982,94.68910359,249.87,249.8,4.003]
[1737612990786,83.13,249.87,249.8,15.56210359]
[1737612991281,83.13,249.87,249.82,11.55910359]
[1737612992981,83.13,249.87,249.83,4.0027]
[1737612993783,83.13,249.87,249.8,11.55910359]
[1737612994284,94.68910359,249.87,249.78,11.55910359]
[1737612994480,11.55910359,249.85,249.77,4.0036]
[1737612994780,94.68910359,249.87,249.78,11.55910359]
[1737612994981,98.69120359,249.87,249.79,4.0033]
[1737612995172,11.55910359,249.85,249.76,11.55910359]
[1737612996901,11.55910359,249.85,249.76,15.56280359]
[1737612997085,11.55910359,249.83,249.76,4.0037]
[1737612999485,4.0024,249.85,249.76,4.0037]
[1737612999486,83.1,249.86,249.81,11.55910359]
[1737612999787,0.03,249.87,249.81,11.55910359]
[1737613000084,15.59120359,249.87,249.79,11.55910359]
[1737613000975,11.55910359,249.85,249.77,11.55910359]
[1737613001471,11.55910359,249.85,249.77,15.56260359]
[1737613004278,83.1,249.84,249.77,15.56260359]
[1737613005682,83.1,249.84,249.79,11.55910359]
[1737613006780,83.1,249.84,249.77,11.55910359]
[1737613006988,83.1,249.84,249.77,15.56260359]
[1737613007677,20.0,249.8,249.73,11.55910359]
[1737613007873,23.776884,249.79,249.7,11.55910359]
[1737613008075,11.55910359,249.78,249.7,11.55910359]
[1737613008269,11.55910359,249.78,249.68,11.55910359]
[1737613008497,11.55910359,249.76,249.68,11.55910359]
[1737613008789,11.55910359,249.78,249.68,11.55910359]
[1737613009096,83.1,249.8,249.73,11.55910359]
[1737613010286,11.55910359,249.78,249.69,11.55910359]
[1737613011589,11.55910359,249.76,249.68,4.0049]
[1737613012690,11.55910359,249.76,249.67,11.55910359]
[1737613012691,11.55910359,249.72,249.63,11.62210359]
[1737613012894,11.55910359,249.68,249.63,0.063]
[1737613013192,23.776884,249.69,249.63,0.063]
[1737613013193,11.55910359,249.64,249.63,0.063]
[1737613014191,35.33598759,249.64,249.63,0.063]
[1737613014602,11.55910359,249.67,249.63,0.063]
[1737613015998,11.55910359,249.65,249.63,0.063]
[1737613016201,23.776884,249.64,249.63,0.063]
[1737613016933,11.55910359,249.65,249.63,0.063]
[1737613017290,83.1,249.66,249.63,0.063]
[1737613017579,18.08720359,249.7,249.63,4.0688]
[1737613017803,6.5281,249.7,249.63,15.62790359]
[1737613018991,13.10450359,249.72,249.63,15.62790359]
[1737613019191,13.10450359,249.72,249.63,327.62790359]
[1737613020097,13.10450359,249.72,249.63,15.62790359]
[1737613021107,11.55910359,249.72,249.63,15.62790359]
[1737613021298,23.776884,249.71,249.63,11.62210359]
[1737613021499,11.55910359,249.7,249.63,0.063]
[1737613021894,23.776884,249.69,249.63,0.063]
[1737613022099,83.1,249.67,249.63,0.063]
[1737613028817,83.13,249.67,249.63,0.063]
[1737613029427,83.13,249.67,249.63,4.0688]
[1737613029617,83.13,249.67,249.66,11.55910359]
[1737613029916,83.13,249.67,249.64,11.55910359]
[1737613030317,83.13,249.67,249.63,4.0688]
[1737613032416,83.13,249.67,249.63,316.0688]
[1737613032620,83.13,249.67,249.63,0.063]
[1737613033001,83.13,249.67,249.63,4.0688]
[1737613033792,0.03,249.67,249.63,4.0688]
[1737613034009,0.03,249.67,249.66,11.55910359]
[1737613034900,0.03,249.67,249.66,15.56450359]
[1737613035099,0.03,249.78,249.66,16.56450359]
[1737613035299,0.03,249.78,249.73,11.55910359]
[1737613037109,0.03,249.78,249.71,11.55910359]
[1737613037312,11.58910359,249.78,249.69,11.55910359]
[1737613038702,11.58910359,249.78,249.69,15.56400359]
[1737613039906,83.1,249.77,249.69,15.56400359]
[1737613042219,87.1037,249.77,249.69,11.55910359]
[1737613042425,94.65910359,249.76,249.67,0.063]
[1737613043905,98.66300359,249.76,249.67,0.063]
[1737613045431,98.66300359,249.76,249.67,4.0682]
[1737613045933,83.1,249.74,249.67,4.0682]
[1737613049825,83.1,249.74,249.67,0.063]
[1737613050038,83.1,249.69,249.67,0.063]
[1737613051127,118.43598759,249.68,249.67,0.063]
[1737613051724,114.26903302,249.68,249.67,0.063]
[1737613051948,31.16903302,249.68,249.67,0.063]
[1737613052110,35.17413302,249.68,249.67,0.063]
[1737613053038,23.776884,249.64,249.63,0.063]
[1737613053209,31.16903302,249.64,249.63,0.063]
[1737613053408,32.77723302,249.64,249.63,0.063]
[1737613053734,36.94137465,249.64,249.63,0.063]
[1737613054043,40.94707465,249.64,249.63,0.063]
[1737613055029,36.94137465,249.64,249.63,0.063]
[1737613055232,1.6082,249.64,249.63,0.063]
[1737613056335,13.16449065,249.64,249.63,0.063]
[1737613056733,11.55629065,249.64,249.63,0.063]
[1737613056932,83.1,249.66,249.63,0.063]
[1737613057932,23.776884,249.65,249.63,0.063]
[1737613058136,4.0057,249.64,249.63,0.063]
[1737613058634,15.56199065,249.64,249.63,0.063]
[1737613060431,11.55629065,249.64,249.63,0.063]
[1737613061939,35.33317465,249.64,249.63,0.063]
[1737613063021,11.55629065,249.64,249.63,0.063]
[1737613065439,23.776884,249.65,249.63,0.063]
[1737613067544,11.55629065,249.64,249.63,0.063]
[1737613067742,27.782584,249.65,249.63,0.063]
[1737613068123,0.03,249.67,249.63,0.063]
[1737613068728,27.812184,249.67,249.63,0.063]
[1737613069548,0.03,249.67,249.63,0.063]
[1737613069837,20.03,249.67,249.63,0.063]
[1737613071647,24.0353,249.67,249.63,0.063]
[1737613072348,47.812184,249.67,249.63,0.063]
[1737613072550,24.0353,249.67,249.63,0.063]
[1737613073645,0.03,249.67,249.63,0.063]
[1737613075049,4.0352,249.67,249.63,0.063]
[1737613075345,0.03,249.67,249.63,0.063]
[1737613081361,83.1,249.66,249.63,0.063]
[1737613084539,83.1,249.65,249.63,0.063]
[1737613084734,23.776884,249.64,249.63,0.063]
[1737613088275,23.776884,249.64,249.63,0.0001]
[1737613088947,25.37254938,249.64,249.63,0.0001]
[1737613090151,26.37254938,249.64,249.62,0.0001]
[1737613090352,35.17382703,249.63,249.62,0.0001]
[1737613091260,20.0,249.59,249.53,0.063]
[1737613091560,7.39104303,249.54,249.53,0.063]
[1737613091751,7.39104303,249.56,249.53,0.063]
[1737613094765,83.1,249.55,249.53,0.063]
[1737613095154,87.1072,249.55,249.53,0.063]
[1737613095558,83.1,249.55,249.53,0.063]
[1737613097164,31.16792703,249.54,249.53,0.063]
[1737613098772,31.16792703,249.54,249.42,0.063]
[1737613099283,27.784384,249.53,249.42,0.063]
[1737613099475,7.39104303,249.45,249.42,0.063]
[1737613100368,31.16792703,249.43,249.42,0.063]
[1737613101192,24.0094,249.41,249.39,0.063]
[1737613101472,35.17732703,249.41,249.39,0.063]
[1737613103771,39.36361568,249.41,249.39,0.063]
[1737613105657,11.57733168,249.41,249.39,0.063]
[1737613106049,31.57733168,249.41,249.39,0.063]
[1737613106281,35.35421568,249.41,249.39,0.063]
[1737613106486,20.0,249.37,249.34,0.03]
[1737613106777,23.776884,249.34,249.28,0.063]
[1737613106991,23.776884,249.31,249.28,0.063]
[1737613107368,23.776884,249.29,249.28,0.063]
[1737613107972,11.57733168,249.32,249.28,0.063]
[1737613108184,23.776884,249.33,249.28,0.063]
[1737613108394,11.57733168,249.34,249.28,0.063]
[1737613109056,11.57733168,249.32,249.28,0.063]
[1737613109254,83.1,249.29,249.28,0.063]
[1737613114172,23.776884,249.33,249.28,0.063]
[1737613114370,27.787684,249.33,249.28,0.063]
[1737613114699,11.57733168,249.32,249.28,0.063]
[1737613114870,23.776884,249.29,249.28,0.063]
[1737613118501,20.0,249.22,249.16,1.5887]
[1737613118667,11.57733168,249.21,249.16,1.5887]
[1737613118868,94.67733168,249.21,249.16,1.5887]
[1737613119291,94.67733168,249.21,249.13,6.338]
[1737613119498,94.67733168,249.21,249.12,4.0141]
[1737613119877,94.67733168,249.19,249.11,15.59153168]
[1737613120098,83.1,249.19,249.11,15.59153168]
[1737613121098,94.67733168,249.19,249.11,15.59153168]
[1737613121283,83.1,249.18,249.11,327.59153168]
[1737613123279,83.1,249.18,249.15,11.57733168]
[1737613123476,83.1,249.25,249.17,11.57733168]
[1737613123676,83.1,249.25,249.19,11.57733168]
[1737613124089,83.1,249.24,249.17,11.57733168]
[1737613125509,83.1,249.24,249.18,4.0131]
[1737613126282,83.1,249.24,249.18,316.0131]
[1737613127195,94.67733168,249.22,249.18,312.0]
[1737613127500,94.67733168,249.2,249.12,4.014]
[1737613128492,106.876884,249.19,249.11,11.60733168]
[1737613128786,4.0124,249.23,249.11,11.60733168]
[1737613128787,23.776884,249.17,249.11,0.03]
[1737613129621,20.0,249.14,249.11,0.03]
[1737613129794,20.0,249.14,248.91,97.3]
[1737613129795,1.0,249.0,248.8,13.13828853]
[1737613130000,43.23516336,249.04,248.84,6.338]
[1737613130001,11.57733168,248.93,248.84,6.338]
[1737613130293,11.57733168,248.95,248.84,17.91533168]
[1737613130484,11.57733168,248.97,248.84,17.91533168]
[1737613130684,23.776884,248.96,248.84,17.91533168]
[1737613131085,11.57733168,248.95,248.84,17.91533168]
[1737613131285,23.776884,248.94,248.84,17.91533168]
[1737613131486,11.57733168,248.91,248.84,6.338]
[1737613131701,11.57733168,248.89,248.84,6.338]
[1737613131919,23.776884,248.88,248.81,312.0]
[1737613132094,35.35421568,248.87,248.75,1.5887]
[1737613132299,35.35421568,248.87,248.71,11.57733168]
[1737613133197,35.35421568,248.87,248.7,6.338]
[1737613133198,20.0,248.83,248.7,6.338]
[1737613133396,11.57733168,248.77,248.7,6.338]
[1737613133796,23.776884,248.82,248.7,6.338]
[1737613133797,18.61047436,248.79,248.7,24.94847436]
[1737613134485,18.61047436,248.81,248.72,18.61047436]
[1737613134712,18.61047436,248.83,248.74,4.65667784]
[1737613135016,6.25680647,248.86,248.79,18.61047436]
[1737613135384,6.25680647,248.83,248.79,18.61047436]
[1737613135589,6.25680647,248.83,248.76,312.07744258]
[1737613135804,6.25680647,248.83,248.77,4.0197]
[1737613136010,6.25680647,248.83,248.79,18.61047436]
[1737613136209,1.0,248.87,248.79,18.61047436]
[1737613137202,18.61047436,248.88,248.79,18.61047436]
[1737613137517,1.0,248.85,248.79,18.61047436]
[1737613137706,1.0,248.85,248.77,22.63017436]
[1737613138317,1.0,248.82,248.75,18.61047436]
[1737613138496,19.61047436,248.84,248.75,18.61047436]
[1737613138703,1.0,248.85,248.77,330.61047436]
[1737613140016,1.0,248.85,248.78,4.0196]
[1737613141009,18.61047436,248.88,248.79,18.61047436]
[1737613141209,1.0,248.89,248.79,18.61047436]
[1737613142115,1.0,248.89,248.8,4.0192]
[1737613143188,18.61047436,248.92,248.83,18.61047436]
[1737613144517,1.0,248.91,248.84,4.0186]
[1737613145924,18.61047436,248.92,248.84,4.0186]
[1737613146214,18.61047436,248.92,248.85,18.61047436]
[1737613147034,1.0,248.91,248.85,18.61047436]
[1737613147702,19.61047436,248.88,248.81,330.61047436]
[1737613147905,1.0,248.83,248.77,18.61047436]
[1737613148107,19.61047436,248.83,248.76,4.0498]
[1737613149211,1.0,248.81,248.76,4.0498]
[1737613150794,1.0,248.79,248.76,0.03]
[1737613151913,19.61047436,248.81,248.76,0.03]
[1737613152097,1.0,248.79,248.76,0.03]
[1737613157112,12.62881877,248.77,248.76,0.03]
[1737613157311,36.40570277,248.77,248.76,0.03]
[1737613158315,12.62881877,248.77,248.76,0.03]
[1737613162034,11.62881877,248.77,248.76,0.03]
[1737613162219,0.063,248.79,248.76,11.65881877]
[1737613162912,0.063,248.79,248.76,0.03]
[1737613168817,1.063,248.79,248.76,0.03]
[1737613171503,1.063,248.79,248.76,11.65881877]
[1737613171904,0.063,248.79,248.78,11.62881877]
[1737613172619,0.063,248.79,248.78,323.62881877]
[1737613173341,0.063,248.79,248.78,327.64841877]
[1737613176238,0.063,248.79,248.76,0.03]
[1737613176446,0.063,248.79,248.76,4.0499]
[1737613180529,0.063,248.79,248.76,0.03]
[1737613189943,0.063,248.79,248.76,312.03]
[1737613190622,0.063,248.79,248.76,316.0498]
[1737613191853,0.063,248.79,248.76,327.67861877]
[1737613192021,0.063,248.79,248.78,11.62881877]
[1737613194954,0.063,248.79,248.78,15.64841877]
[1737613195425,0.063,248.79,248.78,327.64841877]
[1737613196042,0.063,248.79,248.78,4.0196]
[1737613196938,0.063,248.79,248.76,4.0499]
[1737613197352,1.063,248.79,248.76,0.03]
[1737613198444,0.063,248.79,248.76,0.03]
[1737613200648,0.063,248.79,248.77,11.62881877]
[1737613201951,0.063,248.79,248.78,4.0196]
[1737613203842,0.063,248.79,248.78,316.0196]
[1737613204438,0.063,248.79,248.78,4.0196]
[1737613210247,0.063,248.79,248.76,4.0497]
[1737613210435,0.063,248.79,248.77,11.62881877]
[1737613211253,0.063,248.79,248.78,312.0]
[1737613211940,0.063,248.79,248.78,316.0196]
[1737613212473,0.063,248.79,248.78,4.0196]
[1737613215466,0.063,248.79,248.78,316.0196]
[1737613217270,0.063,248.79,248.78,4.0196]
[1737613217763,0.063,248.79,248.78,7.43814626]
[1737613218376,0.063,248.79,248.76,7.46814626]
[1737613218554,0.063,248.79,248.78,7.43814626]
[1737613218888,1.6346,248.91,248.81,20.0]
[1737613219059,1.6346,248.91,248.84,7.43814626]
[1737613219460,0.063,248.91,248.84,7.43814626]
[1737613219880,0.063,248.91,248.85,4.0184]
[1737613221770,0.063,248.91,248.85,15.635777]
[1737613223195,1.0,249.07,248.95,20.0]
[1737613223484,1.6623,249.12,249.02,11.617377]
[1737613223688,6.25680647,249.15,249.1,11.617377]
[1737613223884,1.0,249.12,249.11,15.68499915]
[1737613224059,1.0,249.14,249.05,11.617377]
[1737613224263,6.25680647,249.15,249.09,11.617377]
[1737613224463,1.063,249.16,249.09,11.617377]
[1737613225400,1.063,249.16,249.1,4.0144]
[1737613225984,1.063,249.16,249.11,11.617377]
[1737613226164,1.063,249.16,249.15,312.0]
[1737613229073,1.0,249.12,249.08,11.617377]
[1737613229488,1.0,249.12,249.08,15.631977]
[1737613229895,1.0,249.12,249.1,11.617377]
[1737613230196,1.063,249.16,249.1,11.617377]
[1737613230404,1.063,249.16,249.14,11.617377]
[1737613230771,1.063,249.16,249.15,4.0136]
[1737613231878,1.063,249.16,249.14,11.617377]
[1737613232084,1.063,249.16,249.15,312.0]
[1737613233081,0.063,249.16,249.15,312.0]
[1737613236395,1.0,249.15,249.14,11.617377]
[1737613238894,1.0,249.13,249.12,11.617377]
[1737613239080,1.0,249.11,249.1,11.617377]
[1737613239292,1.0,249.11,249.1,323.617377]
[1737613240317,1.0,249.11,249.1,312.0]
[1737613242711,1.0,249.05,249.04,0.03]
[1737613244191,24.776884,249.05,249.04,0.03]
[1737613244689,1.0,249.11,249.04,11.647377]
[1737613244896,1.0,249.14,249.1,11.617377]
[1737613245610,1.0,249.14,249.11,312.0]
[1737613246292,1.0,249.12,249.11,312.0]
[1737613248621,1.0,249.14,249.11,312.0]
[1737613249113,1.0,249.12,249.11,312.0]
[1737613254929,1.063,249.12,249.11,312.0]
[1737613255226,1.063,249.12,249.1,11.617377]
[1737613257528,0.063,249.12,249.1,15.631777]
[1737613257735,0.063,249.12,249.11,11.617377]
[1737613258231,0.063,249.12,249.11,323.617377]
[1737613258805,0.063,249.12,249.11,312.0]
[1737613264431,0.0001,249.12,249.11,323.617377]
[1737613266842,0.0001,249.12,249.11,312.0]
[1737613273427,1.0001,249.12,249.11,312.0]
[1737613274042,0.0001,249.12,249.11,312.0]
[1737613274620,1.0001,249.12,249.11,312.0]
[1737613276343,1.0001,249.12,249.1,4.0143]
[1737613276740,1.0001,249.12,249.08,15.631977]
[1737613277646,1.0,249.1,249.08,15.631977]
[1737613279128,1.0,249.1,249.08,11.617377]
[1737613279330,1.0,249.1,249.09,312.0]